bitfinex-derivatives/quotes_SOLF0:USTF0_20251230
["timestamp","ask_amount","ask_price","bid_price","bid_amount"]
[1767096768055,7.86,124.5,124.44,7.72]
[1767096768358,0.05732798,124.48,124.46,0.05497468]
[1767096769654,0.05732798,124.48,124.46,7.29517468]
[1767096774062,6.75905951,124.49,124.46,7.29517468]
[1767096775963,98.12170041,124.52,124.46,7.29517468]
[1767096776164,7.86,124.51,124.46,7.29517468]
[1767096780766,7.86,124.51,124.47,7.2398]
[1767096784969,7.86,124.51,124.46,7.29537468]
[1767096785363,7.86,124.51,124.46,0.05497468]
[1767096785563,7.78,124.49,124.46,0.05497468]
[1767096790971,7.78,124.49,124.46,0.00497468]
[1767096791185,9.79027468,124.48,124.46,0.00497468]
[1767096791975,9.84266463,124.48,124.46,0.00497468]
[1767096792775,9.84266463,124.48,124.43,7.2421]
[1767096793770,9.84266463,124.48,124.44,0.05432019]
[1767096798283,9.84266463,124.48,124.44,7.29592019]
[1767096802881,7.83238995,124.48,124.44,7.29592019]
[1767096803883,7.83238995,124.48,124.45,7.241]
[1767096804085,0.05238995,124.48,124.45,7.241]
[1767096804982,0.05238995,124.48,124.45,9.52027468]
[1767096805280,7.73,124.52,124.46,7.51]
[1767096805783,7.73,124.52,124.47,7.2399]
[1767096806186,7.73,124.52,124.48,0.05570285]
[1767096806879,7.73,124.52,124.48,7.29500285]
[1767096807075,94.98,124.55,124.48,7.56570285]
[1767096807394,7.73,124.54,124.47,9.52027468]
[1767096808481,0.05623843,124.52,124.49,0.06157755]
[1767096808686,0.05623843,124.52,124.49,7.30017755]
[1767096809386,0.05623843,124.52,124.49,0.06157755]
[1767096810888,7.78623843,124.52,124.49,0.00157755]
[1767096817684,0.05623843,124.52,124.49,0.00157755]
[1767096817879,7.73,124.54,124.49,9.52185223]
[1767096818894,0.0607203,124.53,124.49,9.52185223]
[1767096819792,0.0607203,124.53,124.49,16.76055223]
[1767096822095,7.73,124.58,124.52,7.237]
[1767096823190,7.73,124.58,124.54,0.06070132]
[1767096832906,9.74027468,124.58,124.54,0.06070132]
[1767096833104,7.49,124.57,124.54,0.06070132]
[1767096833700,7.49,124.55,124.49,7.55]
[1767096834001,9.50027468,124.54,124.49,7.55]
[1767096834195,7.49,124.54,124.49,7.55]
[1767096834395,9.50027468,124.54,124.49,7.55]
[1767096834603,0.05443925,124.53,124.5,0.05625425]
[1767096834996,0.00443925,124.53,124.5,7.60625425]
[1767096835195,13.8733482,124.61,124.52,2.01027468]
[1767096835496,7.49,124.6,124.54,7.55]
[1767096835896,9.50027468,124.59,124.54,7.55]
[1767096836294,7.49,124.58,124.55,0.06059233]
[1767096837702,9.50027468,124.57,124.52,7.55]
[1767096838999,0.05733628,124.56,124.53,0.05147258]
[1767096844916,7.50733628,124.56,124.53,0.00147258]
[1767096859917,7.9,124.55,124.47,7.8]
[1767096860112,7.9,124.53,124.47,7.8]
[1767096861019,0.05613364,124.51,124.49,0.06017985]
[1767096861419,7.9,124.53,124.49,0.06017985]
[1767096862415,0.06090409,124.52,124.49,0.06017985]
[1767096872329,7.96090409,124.52,124.49,0.06017985]
[1767096874533,7.96090409,124.52,124.46,7.2399]
[1767096875440,7.9,124.51,124.45,15.041]
[1767096875734,0.05302072,124.49,124.47,0.05607473]
[1767096879637,7.95302072,124.49,124.44,172.61515497]
[1767096880139,7.95302072,124.49,124.44,7.241]
[1767096880742,7.95302072,124.49,124.45,0.05824101]
[1767096884543,7.95302072,124.49,124.44,7.241]
[1767096885544,7.95302072,124.49,124.45,0.05181325]
[1767096887753,7.66,124.48,124.41,7.86]
[1767096888750,0.05499101,124.46,124.43,0.05986814]
[1767096890146,7.66,124.48,124.43,15.16196814]
[1767096890357,14.8982,124.5,124.43,7.91986814]
[1767096890546,7.66,124.5,124.44,15.1014]
[1767096890745,7.66,124.5,124.44,7.86]
[1767096891150,0.06086886,124.48,124.46,0.05546926]
[1767096893958,7.66,124.5,124.46,0.05546926]
[1767096895059,0.05541778,124.49,124.46,0.05546926]
[1767096895256,0.05541778,124.49,124.46,7.29586926]
[1767096899961,0.05541778,124.49,124.46,0.05546926]
[1767096903661,7.71541778,124.49,124.46,0.05546926]
[1767096904258,7.71541778,124.49,124.43,15.1019]
[1767096904951,7.71541778,124.49,124.43,7.2419]
[1767096905156,7.06,124.47,124.43,7.2419]
[1767096905358,0.05742189,124.46,124.44,0.05946694]
[1767096910664,0.05742189,124.46,124.39,104.97781139]
[1767096910665,7.06,124.45,124.4,7.2439]
[1767096911167,7.06,124.45,124.39,7.66]
[1767096911466,7.06,124.47,124.4,7.66]
[1767096911673,7.06,124.47,124.4,7.72157543]
[1767096912574,7.06,124.47,124.41,7.2433]
[1767096912770,0.06168962,124.45,124.43,0.05549299]
[1767096918574,6.89,124.48,124.43,7.56549299]
[1767096918777,6.89,124.48,124.43,9.57678809]
[1767096919475,2.0112951,124.5,124.45,7.241]
[1767096919476,0.05504277,124.47,124.45,7.241]
[1767096919671,0.05504277,124.47,124.45,7.29390802]
[1767096928282,0.05504277,124.47,124.45,0.05290802]
[1767096934385,2.0112951,124.5,124.45,14.80380802]
[1767096934591,6.89,124.51,124.46,7.51]
[1767096935093,6.89,124.51,124.46,14.7504]
[1767096935489,0.05668869,124.5,124.46,14.7504]
[1767096938394,0.05668869,124.5,124.47,2.0112951]
[1767096939588,0.05668869,124.5,124.46,7.51]
[1767096939793,0.05668869,124.5,124.47,2.0112951]
[1767096943190,0.05668869,124.5,124.46,7.51]
[1767096943391,0.05668869,124.5,124.47,2.0112951]
[1767096948102,0.05668869,124.5,124.46,7.51]
[1767096948303,0.05668869,124.5,124.47,2.0112951]
[1767096955007,0.05668869,124.5,124.47,8.8412951]
[1767096956706,0.05668869,124.5,124.47,6.83]
[1767096972726,244.36659055,124.52,124.47,14.0698]
[1767096973726,0.06156255,124.51,124.48,0.05347317]
[1767096979429,95.04156255,124.51,124.48,0.05347317]
[1767096999455,149.36659055,124.52,124.48,0.05347317]
[1767096999753,6.27,124.54,124.48,6.58347317]
[1767097000159,101.25,124.54,124.48,6.58347317]
[1767097000758,101.25,124.54,124.49,6.53]
[1767097012864,101.25,124.54,124.49,14.05231337]
[1767097017360,101.25,124.54,124.49,6.53]
[1767097020176,101.25,124.54,124.49,13.7685]
[1767097020368,101.25,124.54,124.49,21.29081337]
[1767097026479,101.25,124.54,124.49,23.29990693]
[1767097033191,6.27,124.54,124.49,23.29990693]
[1767097035596,6.27,124.54,124.49,15.77759356]
[1767097035983,5.78,124.56,124.51,8.16909356]
[1767097036189,7.234,124.58,124.53,6.16]
[1767097036190,5.78,124.58,124.53,6.16]
[1767097037194,5.78,124.58,124.52,0.05518975]
[1767097037400,5.78,124.56,124.52,0.05518975]
[1767097039699,5.78,124.58,124.53,2.00909356]
[1767097040291,5.78,124.58,124.52,8.22428331]
[1767097040493,5.78,124.57,124.52,13.45208975]
[1767097040689,5.78,124.57,124.52,0.05518975]
[1767097041193,7.78909356,124.57,124.52,0.05518975]
[1767097041495,5.78,124.56,124.52,0.05518975]
[1767097049501,5.78,124.56,124.52,2.06428331]
[1767097050904,5.78,124.56,124.52,9.30118331]
[1767097051301,100.72,124.58,124.52,8.22428331]
[1767097051502,5.78,124.57,124.52,15.72844239]
[1767097052698,5.78,124.57,124.54,9.24469356]
[1767097058013,5.78,124.59,124.54,9.24469356]
[1767097058309,5.78,124.59,124.55,0.05434941]
[1767097060311,5.78,124.59,124.56,2.00909356]
[1767097061413,5.78,124.59,124.55,7.28954941]
[1767097062112,5.78,124.59,124.55,0.05434941]
[1767097062307,5.78,124.57,124.52,9.51325264]
[1767097062503,5.78,124.57,124.52,2.00909356]
[1767097063214,5.78,124.57,124.51,13.66415908]
[1767097063513,0.05838178,124.55,124.53,0.05389321]
[1767097070526,173.26203555,124.6,124.54,2.00909356]
[1767097071422,173.26203555,124.6,124.56,0.06123822]
[1767097071621,166.02973555,124.6,124.56,0.06123822]
[1767097075627,166.02973555,124.6,124.56,2.07033178]
[1767097081122,173.26213555,124.6,124.56,0.00123822]
[1767097082121,0.05808546,124.59,124.56,0.00123822]
[1767097083327,94.92,124.58,124.56,0.00123822]
[1767097083926,7.29108546,124.59,124.56,0.00123822]
[1767097084127,94.92,124.58,124.56,0.00123822]
[1767097088030,102.1536,124.58,124.56,0.00123822]
[1767097089128,102.1536,124.58,124.52,13.59258842]
[1767097090235,0.0597656,124.56,124.54,0.05666682]
[1767097094737,0.0597656,124.56,124.52,13.59258842]
[1767097095735,0.0597656,124.56,124.53,0.05165079]
[1767097102344,0.0597656,124.56,124.53,0.00165079]
[1767097108241,0.0597656,124.56,124.53,7.49423921]
[1767097112457,0.0597656,124.56,124.53,0.00165079]
[1767097112958,0.0597656,124.56,124.53,7.49423921]
[1767097113350,0.0597656,124.56,124.53,0.00165079]
[1767097114158,0.0597656,124.56,124.53,7.49423921]
[1767097115958,0.0597656,124.56,124.53,0.00165079]
[1767097118259,3.13758582,124.54,124.48,10.02218176]
[1767097118557,94.94,124.53,124.47,5.44]
[1767097119359,0.06118408,124.51,124.49,0.053721]
[1767097122671,94.94,124.53,124.49,5.493721]
[1767097123571,0.0605824,124.52,124.49,5.493721]
[1767097128669,102.1752,124.55,124.49,5.493721]
[1767097129565,0.04778935,124.53,124.49,5.493721]
[1767097130170,0.04778935,124.53,124.49,12.732421]
[1767097130465,0.04778935,124.53,124.5,5.76]
[1767097141273,94.96,124.55,124.5,5.76]
[1767097148483,96.96954938,124.55,124.5,5.76]
[1767097150682,2.00954938,124.55,124.5,5.76]
[1767097150883,96.96954938,124.55,124.5,5.76]
[1767097157785,94.96,124.55,124.5,5.76]
[1767097172893,182.99084125,124.56,124.5,5.76]
[1767097173093,94.96,124.55,124.52,0.05927201]
[1767097180004,7.2336,124.58,124.52,0.05927201]
[1767097180205,94.96,124.57,124.54,0.05963523]
[1767097182308,9.24314938,124.58,124.54,0.05963523]
[1767097182512,94.96,124.57,124.54,0.05963523]
[1767097183907,102.1941,124.57,124.54,0.05963523]
[1767097186105,94.96,124.57,124.54,0.05963523]
[1767097187711,9.24284938,124.59,124.54,0.05963523]
[1767097187912,94.94,124.58,124.54,0.05963523]
[1767097188710,9.24284938,124.59,124.54,0.05963523]
[1767097188908,94.94,124.58,124.54,0.05963523]
[1767097201622,96.94954938,124.58,124.54,0.05963523]
[1767097210528,94.94,124.58,124.54,0.05963523]
[1767097215139,98.07778678,124.58,124.54,0.05963523]
[1767097215440,98.07778678,124.58,124.52,7.237]
[1767097215640,94.94,124.57,124.52,7.237]
[1767097216339,0.05162961,124.56,124.53,0.05696769]
[1767097219743,3.18941639,124.56,124.52,7.237]
[1767097220742,3.18941639,124.56,124.53,0.05508093]
[1767097220941,3.18941639,124.56,124.52,7.237]
[1767097221942,3.18941639,124.56,124.53,0.05660725]
[1767097222143,3.18941639,124.56,124.52,7.237]
[1767097223035,3.18941639,124.56,124.53,0.05771914]
[1767097223240,3.18941639,124.56,124.52,7.237]
[1767097223941,3.18941639,124.56,124.51,6.82]
[1767097224249,3.18941639,124.56,124.49,17.00613261]
[1767097224536,3.13778678,124.54,124.49,7.01]
[1767097225443,0.05597173,124.53,124.5,0.06000929]
[1767097226737,0.05597173,124.53,124.5,7.07000929]
[1767097231348,0.05597173,124.53,124.5,14.30810929]
[1767097238352,15.54218428,124.61,124.55,7.01]
[1767097238556,11.86307352,124.61,124.56,7.01]
[1767097239159,11.86307352,124.61,124.56,14.51426485]
[1767097239455,0.00411309,124.6,124.57,7.06995158]
[1767097239650,0.00411309,124.6,124.58,14.2433]
[1767097244358,0.00411309,124.6,124.56,7.01]
[1767097244560,94.92,124.59,124.56,7.01]
[1767097245364,94.92,124.59,124.56,7.06794733]
[1767097245564,94.92,124.59,124.56,0.05794733]
[1767097256982,94.92,124.59,124.56,6.94794733]
[1767097257881,0.00411309,124.6,124.56,6.94794733]
[1767097258073,94.9,124.59,124.56,6.94794733]
[1767097258380,94.9,124.58,124.56,6.94794733]
[1767097260780,79.7481,124.57,124.56,6.94794733]
[1767097260980,49.5261,124.57,124.56,6.94794733]
[1767097261285,5.1004,124.57,124.56,6.94794733]
[1767097261478,81.8758,124.57,124.56,6.94794733]
[1767097261682,69.094,124.57,124.56,6.94794733]
[1767097265388,0.00411309,124.6,124.56,14.18244733]
[1767097265687,94.90411309,124.6,124.57,6.96]
[1767097266075,0.00411309,124.6,124.58,6.96]
[1767097266279,8.661e-05,124.61,124.58,6.96]
[1767097267282,173.65739917,124.65,124.58,6.96]
[1767097267488,170.51961239,124.65,124.61,6.96]
[1767097267987,94.9,124.66,124.61,6.96]
[1767097268288,0.05479977,124.65,124.62,0.05993493]
[1767097276202,0.05479977,124.65,124.62,7.14993493]
[1767097284622,94.91479977,124.65,124.62,7.14993493]
[1767097285116,0.05479977,124.65,124.62,7.14993493]
[1767097285318,94.91479977,124.65,124.62,7.14993493]
[1767097286823,94.91479977,124.65,124.62,0.05993493]
[1767097287330,96.92030314,124.65,124.62,0.05993493]
[1767097287715,2.06030314,124.65,124.62,0.05993493]
[1767097287914,94.91479977,124.65,124.62,0.05993493]
[1767097288117,96.92030314,124.65,124.62,0.05993493]
[1767097289920,96.92030314,124.65,124.59,7.50426485]
[1767097289921,104.15000314,124.65,124.59,14.73716485]
[1767097290220,94.86,124.64,124.59,14.3229]
[1767097290818,94.86,124.64,124.6,7.09]
[1767097291127,94.86,124.64,124.6,7.14402459]
[1767097293123,0.05479977,124.65,124.62,7.09]
[1767097304528,0.00479977,124.65,124.64,7.09]
[1767097305522,0.00479977,124.65,124.64,14.32]
[1767097308640,0.00479977,124.65,124.64,7.23]
[1767097311333,0.00479977,124.65,124.63,21.94640639]
[1767097313038,0.00479977,124.65,124.64,7.16]
[1767097315239,0.00479977,124.65,124.63,21.94640639]
[1767097316341,0.00479977,124.65,124.64,7.16]
[1767097318636,0.00479977,124.65,124.64,14.66426485]
[1767097320351,0.00479977,124.65,124.64,21.89426485]
[1767097321252,0.00479977,124.65,124.63,0.05164154]
[1767097325558,0.00479977,124.65,124.63,14.15214154]
[1767097325746,0.00479977,124.65,124.61,10.01392042]
[1767097325747,2.00550337,124.64,124.61,10.01392042]
[1767097325951,2.00550337,124.64,124.59,16.88392042]
[1767097326459,2.00550337,124.62,124.58,7.2335]
[1767097326753,0.05538996,124.61,124.59,0.05838799]
[1767097331466,0.05538996,124.61,124.57,6.87]
[1767097331662,2.00550337,124.6,124.57,6.87]
[1767097332559,2.00550337,124.6,124.57,6.93091557]
[1767097332759,2.00550337,124.6,124.57,0.06091557]
[1767097334558,0.05538996,124.61,124.57,0.06091557]
[1767097339860,0.05538996,124.61,124.57,6.87091557]
[1767097340061,7.229,124.66,124.58,6.81]
[1767097340265,3.13678039,124.67,124.58,6.81]
[1767097340974,0.05345352,124.64,124.61,0.05207011]
[1767097341665,0.05345352,124.64,124.58,6.81]
[1767097342766,0.05345352,124.64,124.6,0.05590741]
[1767097348276,7.28365352,124.64,124.6,0.05590741]
[1767097350579,10.36778039,124.63,124.58,6.81]
[1767097350776,3.13678039,124.63,124.58,6.81]
[1767097351375,98.01678039,124.63,124.55,6.81]
[1767097351571,0.06119896,124.6,124.58,0.05503545]
[1767097354982,0.06119896,124.6,124.55,6.81]
[1767097356081,7.29359896,124.6,124.56,0.05211677]
[1767097357485,98.01678039,124.59,124.48,122.62292042]
[1767097357781,94.88,124.58,124.48,10.01392042]
[1767097357972,7.2348,124.56,124.49,7.2386]
[1767097358375,0.05678313,124.54,124.51,0.0611516]
[1767097359487,0.05678313,124.54,124.51,6.8711516]
[1767097361291,7.234,124.58,124.51,6.8711516]
[1767097362186,0.06076079,124.56,124.51,6.8711516]
[1767097363482,0.00076079,124.56,124.51,14.1081516]
[1767097363682,0.00076079,124.56,124.52,6.81]
[1767097375591,0.00076079,124.56,124.52,14.0469]
[1767097376090,0.00076079,124.56,124.53,6.84]
[1767097382991,0.00076079,124.56,124.53,14.0764]
[1767097383190,0.00076079,124.56,124.54,7.08]
[1767097383389,0.00076079,124.56,124.54,7.14035576]
[1767097384092,0.00076079,124.56,124.54,0.06035576]
[1767097384490,0.00076079,124.56,124.51,7.48508934]
[1767097384690,0.00076079,124.56,124.5,7.08]
[1767097384887,3.13678039,124.55,124.48,7.08]
[1767097385584,0.05332779,124.53,124.5,0.05850408]
[1767097389397,0.05332779,124.53,124.5,7.13850408]
[1767097392096,0.05332779,124.53,124.5,0.05850408]
[1767097394691,2.00976085,124.52,124.47,94.92]
[1767097394895,2.00976085,124.52,124.47,7.08]
[1767097395096,0.05332779,124.53,124.45,14.56508934]
[1767097395294,2.00976085,124.52,124.46,7.08]
[1767097395799,0.05136205,124.5,124.48,0.05640656]
[1767097398796,0.00136205,124.5,124.48,6.62640656]
[1767097402498,7.2352,124.55,124.48,6.62640656]
[1767097402702,7.2352,124.55,124.49,6.57]
[1767097403601,0.05185881,124.53,124.51,0.06129622]
[1767097441651,0.00185881,124.53,124.51,6.47129622]
[1767097441851,3.68929727,124.58,124.51,6.47129622]
[1767097442048,5.69905812,124.58,124.51,6.47129622]
[1767097442954,0.05141771,124.56,124.51,6.47129622]
[1767097445657,0.05141771,124.56,124.52,6.41]
[1767097451973,0.05141771,124.56,124.52,13.89508934]
[1767097452262,0.05141771,124.56,124.53,6.41]
[1767097458367,193.34189911,124.61,124.53,6.41]
[1767097458575,190.20337329,124.61,124.55,5.91]
[1767097458974,115.60992582,124.64,124.55,5.91]
[1767097459474,0.05959264,124.61,124.58,0.05547007]
[1767097465983,7.29129264,124.61,124.58,0.05547007]
[1767097482605,7.29129264,124.61,124.55,5.91]
[1767097483499,7.2324,124.6,124.53,13.39508934]
[1767097483699,7.2324,124.6,124.53,5.91]
[1767097483700,3.13852582,124.6,124.53,5.91]
[1767097483898,0.05745643,124.58,124.55,0.05553142]
[1767097484594,7.29105643,124.58,124.55,0.05553142]
[1767097485505,7.2342,124.57,124.55,0.05553142]
[1767097487202,7.2342,124.57,124.53,5.91]
[1767097488399,7.2342,124.57,124.54,0.0557416]
[1767097492004,3.19598225,124.58,124.51,6.93]
[1767097492198,3.13852582,124.58,124.51,6.93]
[1767097493103,0.0569729,124.56,124.53,0.05818516]
[1767097500810,0.0569729,124.56,124.53,6.83818516]
[1767097501609,0.0569729,124.56,124.53,0.05818516]
[1767097502005,0.0569729,124.56,124.51,6.78]
[1767097502207,3.19549872,124.56,124.51,6.78]
[1767097503105,3.19549872,124.56,124.52,0.05222242]
[1767097503498,3.19549872,124.56,124.49,109.2302667]
[1767097504406,3.13852582,124.54,124.51,0.05980539]
[1767097504716,3.13852582,124.54,124.49,6.78]
[1767097505713,0.0525278,124.53,124.5,0.06136259]
[1767097509617,0.0525278,124.53,124.5,6.84136259]
[1767097510018,3.13852582,124.56,124.5,6.84136259]
[1767097510913,3.13852582,124.57,124.5,6.84136259]
[1767097511118,0.06085541,124.54,124.52,0.05692917]
[1767097513630,0.00085541,124.54,124.52,6.83692917]
[1767097515830,3.13852582,124.59,124.52,6.83692917]
[1767097516130,3.13852582,124.59,124.52,6.78]
[1767097516828,0.05875166,124.57,124.54,0.05959984]
[1767097518420,0.05875166,124.57,124.54,7.53959984]
[1767097524439,0.05875166,124.57,124.54,0.05959984]
[1767097541644,0.05875166,124.57,124.53,7.48]
[1767097542547,94.92,124.6,124.53,7.48]
[1767097542548,2.00842564,124.6,124.54,7.48]
[1767097542747,2.00842564,124.6,124.55,7.48]
[1767097543538,0.05461318,124.59,124.56,7.54146747]
[1767097543737,0.00461318,124.59,124.56,7.54146747]
[1767097543943,0.00461318,124.59,124.57,7.48]
[1767097548157,191.71977881,124.61,124.57,7.48]
[1767097549158,0.05857154,124.6,124.57,7.48]
[1767097550855,0.05857154,124.6,124.56,0.06146747]
[1767097551056,0.05857154,124.6,124.56,7.67146747]
[1767097551260,2.00842564,124.59,124.53,7.49122869]
[1767097551662,2.00842564,124.57,124.53,7.49122869]
[1767097551864,0.75,124.58,124.46,114.91404454]
[1767097551865,2.00842564,124.56,124.52,7.49122869]
[1767097552364,2.00842564,124.57,124.53,0.05976421]
[1767097553257,2.00842564,124.57,124.53,7.66976421]
[1767097553659,4.97,124.6,124.53,7.66976421]
[1767097553865,189.71135317,124.61,124.53,7.66976421]
[1767097553866,2.00842564,124.59,124.55,7.61]
[1767097554259,0.05128069,124.58,124.56,0.06145496]
[1767097554465,0.00128069,124.58,124.56,7.67145496]
[1767097576386,0.00128069,124.58,124.56,15.16268365]
[1767097581983,0.00128069,124.58,124.54,18.45392042]
[1767097582188,0.00128069,124.58,124.54,8.44]
[1767097583177,0.00128069,124.58,124.55,0.06081969]
[1767097588282,0.00128069,124.58,124.55,8.50081969]
[1767097589890,0.00128069,124.58,124.55,18.51474011]
[1767097590084,0.00128069,124.58,124.56,8.44]
[1767097597898,0.00128069,124.58,124.53,10.01392042]
[1767097598289,0.00128069,124.58,124.52,14.98154]
[1767097598290,11.30813566,124.58,124.52,10.01392042]
[1767097598490,8.17,124.57,124.51,10.01392042]
[1767097598906,0.05399302,124.55,124.53,0.0539279]
[1767097599100,0.05399302,124.55,124.51,10.01392042]
[1767097599799,0.05399302,124.55,124.52,8.44]
[1767097600202,0.05399302,124.55,124.52,8.49058346]
[1767097606198,5.35,124.58,124.52,8.49058346]
[1767097607403,0.00408144,124.56,124.52,8.49058346]
[1767097610605,0.00408144,124.56,124.53,8.79]
[1767097611608,0.00408144,124.56,124.54,8.79]
[1767097623613,0.00408144,124.56,124.52,7.74058346]
[1767097631024,0.00408144,124.56,124.52,14.97718346]
[1767097631325,0.00408144,124.56,124.53,7.69]
[1767097636327,0.00408144,124.56,124.53,14.9263]
[1767097636635,0.00408144,124.56,124.54,6.76]
[1767097642141,0.00408144,124.56,124.54,14.26075641]
[1767097644142,0.00408144,124.56,124.54,7.50075641]
[1767097644342,0.00408144,124.56,124.53,7.50075641]
[1767097644746,0.00408144,124.56,124.53,14.26075641]
[1767097646342,0.00408144,124.56,124.54,7.50075641]
[1767097646547,0.00408144,124.56,124.53,14.26075641]
[1767097649441,0.00408144,124.56,124.54,7.50075641]
[1767097655349,0.00408144,124.56,124.53,14.26075641]
[1767097658255,0.00408144,124.56,124.54,7.50075641]
[1767097661053,0.00408144,124.56,124.53,14.26075641]
[1767097661242,0.00408144,124.56,124.54,7.50075641]
[1767097663655,0.00408144,124.56,124.54,14.26075641]
[1767097663838,0.00408144,124.56,124.54,6.76]
[1767097665453,0.00408144,124.56,124.54,14.26075641]
[1767097665752,0.00408144,124.56,124.55,6.76]
[1767097682565,0.00408144,124.56,124.54,7.49766888]
[1767097683052,0.00408144,124.56,124.54,5.52]
[1767097683252,0.00408144,124.56,124.54,13.01766888]
[1767097689455,0.00408144,124.56,124.55,5.52]
[1767097707784,0.00408144,124.56,124.55,13.01476318]
[1767097708776,12.3421,124.61,124.56,4.96]
[1767097708976,5.11,124.61,124.56,12.45476318]
[1767097709175,188.95535669,124.62,124.57,4.96]
[1767097709370,196.18655669,124.62,124.57,12.45476318]
[1767097709687,196.18655669,124.62,124.57,4.96]
[1767097709982,0.05822629,124.61,124.58,0.05742293]
[1767097725494,7.29002629,124.61,124.58,0.05742293]
[1767097740311,0.05822629,124.61,124.58,5.00742293]
[1767097740516,5.00822629,124.61,124.56,11.48247629]
[1767097740716,4.95,124.61,124.56,11.48247629]
[1767097741522,0.06080976,124.6,124.57,0.05801378]
[1767097741722,5.01080976,124.6,124.56,6.53247629]
[1767097741926,4.95,124.59,124.54,4.95]
[1767097742923,4.95,124.59,124.55,0.05102415]
[1767097743623,12.1829,124.59,124.55,0.05102415]
[1767097748130,4.95,124.58,124.55,0.05102415]
[1767097751327,12.1835,124.58,124.55,0.05102415]
[1767097753729,4.95,124.57,124.55,0.00102415]
[1767097754734,5.00503604,124.57,124.55,0.00102415]
[1767097768756,12.23923604,124.57,124.55,0.00102415]
[1767097769957,12.2346,124.56,124.55,0.00102415]
[1767097770158,5.0,124.55,124.5,5.15]
[1767097771358,0.05583199,124.54,124.51,0.05809871]
[1767097774060,0.05583199,124.54,124.51,5.20809871]
[1767097775160,0.05583199,124.54,124.51,12.44559871]
[1767097778054,5.0,124.57,124.52,14.39494888]
[1767097778966,0.06027573,124.56,124.52,14.39494888]
[1767097781057,0.06027573,124.56,124.53,5.15]
[1767097790080,0.06027573,124.56,124.52,5.36]
[1767097791084,5.47027573,124.56,124.52,5.36]
[1767097791280,12.70507573,124.56,124.51,0.05809871]
[1767097791986,12.70507573,124.56,124.51,5.41809871]
[1767097800500,12.70507573,124.56,124.51,12.91068702]
[1767097800795,7.29507573,124.56,124.52,5.23]
[1767097800992,0.06027573,124.56,124.52,12.72258831]
[1767097827318,0.06027573,124.56,124.53,7.49258831]
[1767097832023,7.29497573,124.56,124.53,7.49258831]
[1767097853447,7.29497573,124.56,124.53,13.00258831]
[1767097862852,117.8891,124.61,124.54,7.49258831]
[1767097863051,5.39,124.6,124.55,7.49258831]
[1767097863949,12.67396768,124.59,124.56,0.05531231]
[1767097864152,5.39,124.58,124.52,10.01392042]
[1767097865156,0.0611589,124.56,124.54,0.0561705]
[1767097868761,0.0011589,124.56,124.54,0.0561705]
[1767097896475,193.28520915,124.63,124.54,10.07009092]
[1767097896678,5.36,124.62,124.55,12.0219201]
[1767097897173,5.36,124.61,124.55,10.01392042]
[1767097897571,5.36,124.61,124.55,17.24912042]
[1767097897772,0.05549313,124.59,124.57,0.05825349]
[1767097900484,187.92520915,124.63,124.57,0.05825349]
[1767097900670,3.91187645,124.66,124.58,10.01392042]
[1767097900671,5.36,124.65,124.58,10.01392042]
[1767097900873,5.36,124.65,124.58,104.93392042]
[1767097901274,5.36,124.65,124.58,94.92]
[1767097901683,0.05109962,124.63,124.6,0.06083521]
[1767097911493,4.69109962,124.63,124.6,0.06083521]
[1767097913494,4.69109962,124.63,124.6,0.00083521]
[1767097917694,11.92179962,124.63,124.6,0.00083521]
[1767097919599,4.34,124.62,124.6,0.00083521]
[1767097930899,0.05109962,124.63,124.6,0.00083521]
[1767097931405,4.39109962,124.63,124.6,0.00083521]
[1767097942109,4.18,124.62,124.57,5.53392042]
[1767097942308,4.18,124.62,124.55,3.76]
[1767097942703,4.18,124.61,124.55,3.76]
[1767097943204,0.05985404,124.59,124.57,0.05574441]
[1767097944110,4.23985404,124.59,124.55,7.2351]
[1767097945213,4.23985404,124.59,124.56,0.05464875]
[1767097946815,4.18,124.57,124.52,98.61]
[1767097947614,4.18,124.57,124.52,105.8469]
[1767097948014,0.05106898,124.56,124.53,0.05998462]
[1767097957523,4.23106898,124.56,124.53,0.05998462]
[1767097958025,4.23106898,124.56,124.52,94.88]
[1767097959021,4.23106898,124.56,124.53,0.05680415]
[1767097959220,4.23106898,124.56,124.5,106.6181]